[Event "44th Chess Olympiad Women 2022"]
[Site "Chennai"]
[Date "2022.08.05"]
[Round "7.8"]
[White "Petrova, Kristyna"]
[Black "Eizaguerri Floris, Maria"]
[Result "1/2-1/2"]
[WhiteElo "2238"]
[BlackElo "2176"]
[Annotator "NA RC"]
[PlyCount "82"]
[EventDate "2022.??.??"]
[TimeControl "60"]

1. e4 {[%emt 0:00:03]} c5 {[%emt 0:00:05]} 2. Nf3 {[%emt 0:00:06]} d6 {[%emt 0:
00:00]} 3. d4 {[%emt 0:00:08]} cxd4 {[%emt 0:00:05]} 4. Nxd4 {[%emt 0:00:05]}
Nf6 {[%emt 0:00:05]} 5. Nc3 {[%emt 0:00:06]} a6 {[%emt 0:00:09]} 6. Be3 {
[%emt 0:00:09]} e6 {[%emt 0:00:12]} 7. Be2 {[%emt 0:00:23]} Be7 {[%emt 0:00:51]
} 8. O-O {[%emt 0:00:20]} O-O {[%emt 0:00:20]} 9. f4 {[%emt 0:00:33]} Nc6 {
[%emt 0:01:48]} 10. Kh1 {[%emt 0:01:37]} Bd7 {[%emt 0:02:52]} 11. Qe1 {[%emt 0:
00:00]} b5 {[%emt 0:01:12]} 12. a3 {[%emt 0:00:12]} Qb8 {[%emt 0:04:36]} 13.
Rd1 {[%emt 0:28:55]} b4 {[%emt 0:22:17]} 14. axb4 {[%emt 0:03:17]} Qxb4 {
[%emt 0:00:17]} 15. Bf3 {[%emt 0:23:16]} e5 {[%emt 0:14:53]} 16. Nxc6 {[%emt 0:
00:00]} Bxc6 {[%emt 0:00:10]} 17. Nd5 {[%emt 0:00:32]} Qb7 {[%emt 0:00:28]} 18.
fxe5 {[%emt 0:13:25]} dxe5 {[%emt 0:03:19]} 19. Nxe7+ {[%emt 0:02:34]} Qxe7 {
[%emt 0:00:06]} 20. Bg5 {[%emt 0:00:04]} Qe6 {[%emt 0:04:27]} 21. Qh4 {[%emt 0:
00:00]} Bb5 {[%emt 0:16:23]} 22. Rfe1 {[%emt 0:01:43]} Rac8 {[%emt 0:03:17]}
23. Bxf6 {[%emt 0:02:02]} Qxf6 {[%emt 0:00:10]} 24. Qxf6 {[%emt 0:00:15]} gxf6
{[%emt 0:00:03]} 25. Rd2 {[%emt 0:00:23]} Rfd8 {[%emt 0:04:20]} 26. Red1 {
[%emt 0:00:57]} Rxd2 {[%emt 0:00:02]} 27. Rxd2 {[%emt 0:00:03]} Rc4 {[%emt 0:
00:00]} 28. Kg1 {[%emt 0:02:38]} Kf8 {[%emt 0:02:54]} 29. Kf2 {[%emt 0:01:59]}
Ke7 {[%emt 0:00:04]} 30. Ke3 {[%emt 0:01:55]} Bc6 {[%emt 0:00:08]} 31. c3 {
[%emt 0:03:19]} Ra4 {[%emt 0:05:15]} 32. Rd1 {[%emt 0:04:07]} a5 {[%emt 0:00:
00]} 33. Rb1 {[%emt 0:01:14]} Kd6 {[%emt 0:01:46]} 34. b4 {[%emt 0:01:18]} Ra3
{[%emt 0:06:59]} 35. Rd1+ {[%emt 0:00:07]} Ke7 {[%emt 0:00:26]} 36. bxa5 {
[%emt 0:00:20]} Rxa5 {[%emt 0:00:12]} 37. Rb1 {[%emt 0:02:01]} Ra3 {[%emt 0:00:
00]} 38. Kd3 {[%emt 0:00:49]} Ra4 {[%emt 0:00:04]} 39. Ke3 {[%emt 0:00:25]} Ra3
{[%emt 0:03:51]} 40. Kd3 {[%emt 0:00:05]} Ra4 {[%emt 0:00:29]} 41. Ke3 {
[%emt 0:10:32]} Ra3 {[%emt 0:05:33]} 1/2-1/2

[Event "44th Chess Olympiad Women 2022"]
[Site "Chennai"]
[Date "2022.08.05"]
[Round "7.8"]
[White "Vega Gutierrez, Sabrina"]
[Black "Movsesian, Julia"]
[Result "1-0"]
[WhiteElo "2366"]
[BlackElo "2291"]
[Annotator "TA"]
[PlyCount "192"]
[EventDate "2022.??.??"]
[TimeControl "60"]

{[%evp 16,192,18,0,0,0,18,16,10,0,22,20,25,-35,-34,-33,-14,-12,-11,-27,-8,-10,
0,0,0,0,0,0,0,-11,12,12,16,0,0,0,-6,-10,-10,-10,-10,-10,-10,-8,-8,-12,-9,-12,
-12,-8,0,0,0,0,0,0,0,0,0,0,4,0,0,0,0,0,0,-16,-5,-7,0,0,0,0,0,0,0,0,0,0,0,0,0,0,
0,0,0,0,0,0,0,0,86,30,166,167,165,162,135,140,192,197,172,167,200,200,197,195,
156,0,123,0,170,191,203,200,183,184,165,175,198,191,184,148,144,69,69,69,69,69,
69,0,5,0,68,68,68,68,67,12,69,65,69,70,120,90,150,0,115,0,132,130,138,105,164,
156,273,265,351,299,562,550,476,476,4922,343,332,203,934,72,392,382,576,568,
535,551,485,414,643]} 1. e4 {[%emt 0:00:04]} c5 {[%emt 0:00:07]} 2. Nf3 {
[%emt 0:00:07]} d6 {[%emt 0:00:05]} 3. d4 {[%emt 0:00:09]} cxd4 {[%emt 0:00:07]
} 4. Nxd4 {[%emt 0:00:14]} Nf6 {[%emt 0:00:10]} 5. Nc3 {[%emt 0:00:06]} g6 {
[%emt 0:00:03]} 6. Bc4 {[%emt 0:06:49]} Bg7 {[%emt 0:00:35]} 7. O-O {[%emt 0:
00:00]} O-O {[%emt 0:00:04]} 8. Re1 $1 {[%emt 0:00:18] The main line 8.Re1
scores better than 8.Bb3.} Nc6 {[%emt 0:00:43]} 9. Nb3 {[%emt 0:00:17]} a6 {
[%emt 0:02:01] B70: Sicilian Dragon: 6 g3 and 6 Be2 (without a later Be3).} 10.
a4 {[%emt 0:02:07]} Bg4 {[%emt 0:00:35]} 11. f3 {[%emt 0:01:25]} Ne5 {[%emt 0:
00:00] The position is equal.} 12. Bf1 {[%emt 0:00:43]} Bd7 {[%emt 0:02:09]}
13. a5 {[%emt 0:02:08]} Rc8 {[%emt 0:04:36] [#]} 14. Nd5 $146 {[%emt 0:01:55]}
(14. Be3 $11) ({Predecessor:} 14. Na4 Bxa4 15. Rxa4 Qc7 16. f4 Nc6 17. Be3 Nd7
18. c3 Nc5 19. Nxc5 dxc5 20. Bxc5 Qxf4 {1-0 (60) Fernandez Garcia,J (2353)
-Diaz Reyes,K (1933) Santa Cruz de Tenerife 2021}) 14... Nxd5 $15 {[%emt 0:00:
00]} 15. exd5 {[%emt 0:00:09]} Re8 {[%emt 0:01:14]} 16. c3 {[%emt 0:12:57]} Qc7
{[%emt 0:07:21]} 17. h3 {[%emt 0:13:04]} e6 {[%emt 0:17:28]} 18. Be3 {[%emt 0:
00:00]} Nc4 {[%emt 0:04:30]} 19. Bxc4 {[%emt 0:00:15]} Qxc4 {[%emt 0:00:06]}
20. dxe6 {[%emt 0:00:12]} Bxe6 {[%emt 0:00:26] This bishop pair is nice.} 21.
Nd2 {[%emt 0:02:03]} Qc6 {[%emt 0:02:34]} 22. Ra4 {[%emt 0:01:18]} Bf5 {
[%emt 0:06:22]} 23. Rb4 {[%emt 0:08:50]} Qd5 {[%emt 0:07:37]} 24. Bd4 {[%emt 0:
00:00]} Qxa5 {[%emt 0:10:12]} 25. Rxe8+ {[%emt 0:03:38]} Rxe8 {[%emt 0:00:02]}
26. Nc4 {[%emt 0:05:12]} Qd5 {[%emt 0:05:55][%cal Yf5h3]} 27. Nb6 {[%emt 0:00:
00]} Qe6 {[%emt 0:08:24]} 28. Bxg7 {[%emt 0:00:16]} Kxg7 {[%emt 0:00:04]} 29.
Nd5 {[%emt 0:00:37] Inhibits Qe3+.} Qe1+ {[%emt 0:04:55]} 30. Qxe1 {[%emt 0:00:
00]} Rxe1+ $11 {[%emt 0:00:05] Endgame KRB-KRN} 31. Kf2 {[%emt 0:00:00]} Re5 {
[%emt 0:02:01]} 32. Nc7 {[%emt 0:08:13]} Bc8 {[%emt 0:04:07]} 33. f4 {[%emt 0:
00:02]} Re7 {[%emt 0:00:21]} 34. Nd5 {[%emt 0:00:08]} Re8 {[%emt 0:00:00]} 35.
Rb6 {[%emt 0:00:24]} Bd7 {[%emt 0:02:41]} 36. Rxd6 {[%emt 0:04:07]} Bb5 {
[%emt 0:00:59] And now ...Re2+ would win.} 37. Ne3 {[%emt 0:00:16]} Kf8 {
[%emt 0:01:21]} 38. c4 {[%emt 0:03:05]} Bc6 {[%emt 0:00:05]} 39. g3 {[%emt 0:
00:00]} a5 {[%emt 0:02:21]} 40. Ng4 {[%emt 0:00:25]} Ke7 {[%emt 0:01:46]} 41.
Rd4 {[%emt 0:30:36]} Rc8 {[%emt 0:02:30]} 42. Ne3 {[%emt 0:00:00]} f5 {[%emt 0:
00:00]} 43. Ke2 {[%emt 0:00:00]} Be4 {[%emt 0:02:42]} 44. Kd2 {[%emt 0:00:00]}
Ke6 {[%emt 0:03:10]} 45. h4 {[%emt 0:00:00]} Bf3 {[%emt 0:04:03]} 46. Nc2 {
[%emt 0:00:00]} Be4 {[%emt 0:02:06]} 47. Na3 {[%emt 0:00:00]} Bc6 {[%emt 0:00:
00]} 48. Ke3 {[%emt 0:00:00]} Ke7 {[%emt 0:04:39]} 49. Rd3 {[%emt 0:00:00]} Ke6
{[%emt 0:02:00]} 50. Rd1 {[%emt 0:01:14]} Be4 {[%emt 0:01:13]} 51. Rd2 {
[%emt 0:00:24]} Bc6 {[%emt 0:03:27]} 52. c5 {[%emt 0:00:40]} Bd5 {[%emt 0:00:
00] Prevents Nc4.} 53. Kd4 {[%emt 0:00:20]} Be4 {[%emt 0:01:30] [#]} (53... Rd8
$11) 54. Nc4 {[%emt 0:00:50]} (54. Kc4 $1 $16) 54... Ra8 {[%emt 0:01:22]} (
54... Rd8+ $11 55. Nd6 b6) 55. Kc3 $18 {[%emt 0:01:34]} Bc6 {[%emt 0:02:08]}
56. Rd6+ {[%emt 0:00:16]} Ke7 {[%emt 0:00:01]} 57. Ne5 {[%emt 0:00:27]} a4 {
[%emt 0:03:21] [#]} (57... Be8 $16 58. Rb6 Ra7) 58. Kb4 $1 {[%emt 0:01:32]} ({
But not} 58. Nxc6+ $6 bxc6 59. Kb4 (59. Rxc6 a3 $16) 59... Rb8+ 60. Kxa4 Rxb2
$16) 58... Be8 {[%emt 0:00:14][%cal Ya4a3]} 59. Rb6 {[%emt 0:00:28]} Ra7 {
[%emt 0:00:04]} 60. Ka3 {[%emt 0:00:30]} Kd8 {[%emt 0:00:35]} 61. Rd6+ {
[%emt 0:01:46]} Ke7 {[%emt 0:00:09]} 62. Rb6 {[%emt 0:00:30] 0x0.
00144c92d7cedp-1022s more active pieces.} Kd8 $1 {[%emt 0:00:04]} 63. Kb4 {
[%emt 0:00:29]} (63. h5 $16) 63... Ke7 {[%emt 0:01:19]} 64. h5 {[%emt 0:00:12]}
gxh5 {[%emt 0:01:11][%cal Ya4a3]} 65. Rh6 {[%emt 0:00:03]} a3 {[%emt 0:00:40]}
66. bxa3 {[%emt 0:00:32]} ({Don't take} 66. Rxh7+ Ke6 67. bxa3 Ra4+ 68. Kb3 Re4
$16) 66... Ra4+ {[%emt 0:00:46]} 67. Kb3 {[%emt 0:00:02]} Re4 {[%emt 0:00:16]
[%cal Yh5h4]} 68. Rxh7+ {[%emt 0:00:01]} Ke6 {[%emt 0:00:04]} 69. Rxb7 {
[%emt 0:00:27]} Kd5 {[%emt 0:00:14] Inhibits c6.} 70. Re7 {[%emt 0:02:09]} (70.
Rb8 $16 Ba4+ 71. Kc3) 70... Ba4+ $14 {[%emt 0:00:36]} 71. Kc3 {[%emt 0:00:02]
[%cal Yc5c6] Hoping for c6!} Re3+ $1 {[%emt 0:01:28]} 72. Kb4 {[%emt 0:00:07]}
Re4+ {[%emt 0:00:47]} 73. Kc3 {[%emt 0:01:15]} ({White should try} 73. Ka5 $14
Kxc5 74. Rc7+ Kd5 75. Rc8) 73... Re3+ $1 $11 {[%emt 0:00:00]} 74. Kb4 {[%emt 0:
00:00]} (74. Kd2 $11 Rxg3 75. Ra7) 74... Re4+ $14 {[%emt 0:00:01]} 75. Ka5 {
[%emt 0:00:06][%cal Yc5c6] Strongly threatening c6!} Kxc5 {[%emt 0:00:06]} 76.
Rc7+ $1 {[%emt 0:00:47]} Kd5 {[%emt 0:00:25][%cal Yh5h4]} 77. Nc4 {[%emt 0:00:
00]} Bc6 {[%emt 0:00:24]} (77... Be8 $1 $11 78. Nb6+ Kd4) 78. Nb6+ $1 {[%emt 0:
00:00]} Kd6 {[%emt 0:00:08]} 79. Rh7 {[%emt 0:00:29]} Rd4 {[%emt 0:00:34]} (
79... Be8 $14) 80. Rh6+ {[%emt 0:00:41]} Kc7 {[%emt 0:00:49]} (80... Kc5 $142)
81. Rh7+ {[%emt 0:00:04]} Kd6 {[%emt 0:00:10]} 82. Rh6+ {[%emt 0:00:04]} Kc7 $1
{[%emt 0:00:04]} 83. Rxh5 {[%emt 0:00:28]} Rd3 {[%emt 0:00:21]} 84. a4 {
[%emt 0:00:28]} Rxg3 {[%emt 0:01:39]} (84... Be4 $16) 85. Rxf5 $18 {[%emt 0:00:
00]} Kd6 {[%emt 0:01:09]} (85... Rf3 $16 {was worth a try.} 86. Nc4 Rf1 87.
Rf7+ Kd8) 86. Kb4 {[%emt 0:02:00]} Ke6 {[%emt 0:00:34]} 87. Rc5 {[%emt 0:00:04]
} Bb7 $2 {[%emt 0:00:28]} (87... Bh1 88. Re5+ Kf7) 88. Re5+ {[%emt 0:00:32]}
Kf7 {[%emt 0:00:45]} 89. Nc4 {[%emt 0:00:19] aiming for Nd6+.} Rf3 {[%emt 0:00:
00]} (89... Kf6 $142 90. Nd6 Rg4 91. Rf5+ Ke6) 90. f5 $2 {[%emt 0:01:07]} (90.
Rb5 {Threatening mate with Ne5+.} Ke6 91. Rxb7) 90... Kf6 {[%emt 0:00:29]} 91.
Rb5 {[%emt 0:00:11]} Be4 $2 {[%emt 0:00:44]} (91... Bc8 92. Rc5 Bxf5) 92. Nd6
$2 {[%emt 0:00:14]} (92. Nd2 $18 Rf4 93. Nxe4+ Rxe4+ 94. Ka5) 92... Bc2 $2 {
[%emt 0:00:15]} (92... Bc6 $16) 93. a5 {[%emt 0:00:23] Black must now prevent
a6.} Rb3+ {[%emt 0:00:49]} (93... Ke7 $142 94. Rd5 Bd3) 94. Kc5 {[%emt 0:00:08]
} Ra3 {[%emt 0:00:33]} 95. Kb6 {[%emt 0:00:50]} Bd3 {[%emt 0:00:00]} 96. Rb4 {
[%emt 0:01:11]} Rc3 {[%emt 0:01:10] Weighted Error Value: White=0.06 (flawless)
/Black=0.13 (very precise)} (96... Ra1 $142 97. Nb5 Bxf5) 1-0

[Event "44th Chess Olympiad Women 2022"]
[Site "Chennai"]
[Date "2022.08.05"]
[Round "7.8"]
[White "Worek, Joanna"]
[Black "Matnadze, Ana"]
[Result "1-0"]
[WhiteElo "2280"]
[BlackElo "2406"]
[Annotator "TA"]
[PlyCount "107"]
[EventDate "2022.??.??"]
[TimeControl "60"]

{[%evp 9,107,25,26,23,24,24,22,0,0,-16,32,24,27,20,27,21,17,22,30,5,42,-89,-77,
-166,-191,-169,-12,-41,-17,-47,-23,-20,-10,-78,-72,-60,-53,-89,-23,-130,-137,
-241,-207,-195,-143,-141,0,-102,0,0,52,47,53,50,151,4,80,0,1,4,17,24,143,140,
213,216,215,225,208,228,213,216,222,114,97,0,198,208,252,172,246,249,237,237,
287,285,276,271,250,248,415,409,410,409,421,404,1565,1554,1363,1187]} 1. e4 {
[%emt 0:00:02]} c6 {[%emt 0:00:05]} 2. d4 {[%emt 0:00:04]} d5 {[%emt 0:00:04]}
3. e5 {[%emt 0:00:05]} a6 {[%emt 0:00:18]} 4. Nf3 {[%emt 0:01:43]} Bg4 {
[%emt 0:00:08]} 5. Nbd2 {[%emt 0:00:56]} e6 {[%emt 0:00:35]} 6. h3 {[%emt 0:00:
00] B12: Caro-Kann: Advance Variation.} Bh5 {[%emt 0:01:01]} 7. Bd3 {[%emt 0:
00:00]} c5 {[%emt 0:00:48] [#]} 8. dxc5 $146 {[%emt 0:00:39] The position is
equal.} (8. g4 $5 {[%cal Rg4h5]} Bg6 9. Bxg6 hxg6 10. c3 $11) ({Predecessor:} 
8. c3 Nc6 9. a3 cxd4 10. cxd4 Nge7 11. Nb3 Bxf3 12. Qxf3 Qb6 13. Qd1 Nf5 14.
Be3 Nxe3 15. fxe3 {1-0 (44) Obad,A (2279)-Cagara,P (2054) Chess.com INT 2020})
8... Bxc5 {[%emt 0:05:53]} 9. O-O {[%emt 0:05:13]} Nc6 {[%emt 0:01:04]} (9...
Ne7 $11) 10. g4 $1 $14 {[%emt 0:02:53]} Bg6 {[%emt 0:01:31]} 11. Bxg6 $1 {
[%emt 0:00:54]} hxg6 {[%emt 0:00:08]} 12. Kg2 {[%emt 0:00:04]} Qc7 {[%emt 0:00:
00]} 13. Qe2 {[%emt 0:02:41]} Nge7 {[%emt 0:02:06]} 14. c3 {[%emt 0:00:40]} Bb6
{[%emt 0:06:59][%cal Yg6g5]} 15. b3 {[%emt 0:02:51]} (15. Nb3 $14 {stays ahead.
}) 15... g5 $17 {[%emt 0:14:27]} 16. Re1 {[%emt 0:00:38]} (16. Nxg5 $17 Nxe5
17. f4 Nxg4 18. hxg4 Qxc3 19. f5) 16... Ng6 $19 {[%emt 0:00:13]} 17. Nf1 {
[%emt 0:00:06] [#]} d4 $2 {[%emt 0:02:22]} ({Better is} 17... Ncxe5 $1 $19 18.
Nxe5 Qxc3) 18. Bxg5 {[%emt 0:05:50]} (18. Qe4 $5 {[%cal Rc3d4]}) 18... dxc3 {
[%emt 0:00:40]} 19. Qe4 {[%emt 0:01:06] Prevents Nd4.} Nce7 {[%emt 0:03:13]}
20. Rac1 {[%emt 0:09:34]} Nd5 {[%emt 0:01:56]} 21. Ng3 {[%emt 0:02:59]} (21.
Ne3 $11) 21... Qc5 $17 {[%emt 0:07:23]} 22. Rc2 {[%emt 0:00:00]} Bd8 {[%emt 0:
03:09][%cal Yb6d8,Yd8c7,Yc7e5]} 23. Be3 {[%emt 0:00:00]} Qb4 {[%emt 0:07:16]} (
23... Qc6 $1 $17) 24. Nd4 {[%emt 0:08:38]} (24. Qxb4 $11 Nxb4 25. Rxc3) 24...
Bc7 {[%emt 0:03:08]} 25. Nh5 {[%emt 0:04:48]} (25. Nf3 $17 {might work better.}
) 25... Bxe5 {[%emt 0:03:45][%cal Yh8h5]} 26. a3 {[%emt 0:01:43]} Nxe3+ {
[%emt 0:07:31]} (26... Qxa3 27. Nxe6 $1 Qd6 28. Nexg7+ Kf8 29. Nf5 $14) (26...
Qd6 $19 {[%cal Yh8h5] White must now prevent ... Rxh5!} 27. Nf3 Bf6) 27. fxe3 {
[%emt 0:00:05]} Qe7 {[%emt 0:01:55]} (27... Qxa3 28. Nxe6 Nh4+ 29. Kh1 $11) (
27... Qd6 $17 {aiming for ...Nh4+.} 28. Rxc3 O-O) 28. Nc6 {[%emt 0:07:00]
Active counter play!} (28. Nf3 $11 {remains equal.} Qd6 29. Nxe5 Qxe5 30. Qxe5
Nxe5 31. Rxc3) 28... Qh4 {[%emt 0:14:16]} (28... Nh4+ 29. Kf2 bxc6 30. Qxc6+ (
30. Qxe5 f6 $11) 30... Qd7 31. Qxa8+ Ke7 32. Qe4 $16 (32. Qxh8 $2 Qd5 $19)) (
28... Qg5 $17 {And now ...Rxh5 would win.} 29. Nxe5 Nxe5) 29. Nxe5 $11 {
[%emt 0:01:00]} Rxh5 {[%emt 0:00:53] [#]} (29... Nxe5 $11 30. Qxe5 Qxe1) 30.
Nxg6 $1 $14 {[%emt 0:01:17]} Qxh3+ {[%emt 0:00:25]} 31. Kf2 $1 {[%emt 0:00:08]
[%cal Yg2f2,Yf2f1,Yf1g1]} Rh6 {[%emt 0:02:11] [#]} (31... Qh2+ $14 32. Qg2
Qxg2+ 33. Kxg2 Rb5) 32. Nf4 {[%emt 0:08:10]} (32. Qxb7 Qh2+ 33. Qg2 (33. Kf1
Qh1+ 34. Qxh1 Rxh1+ 35. Ke2 Rh2+ 36. Kd1 Rd8+ 37. Kc1 Rdd2 $15) 33... Qxg2+ 34.
Kxg2 Rxg6 $11) ({White has to play} 32. Rg1 $1 $16 Rd8 33. Nf4 Qh4+ 34. Ke2 (
34. Kf3 g5 $11) 34... Qh2+ 35. Qg2) 32... Qxg4 {[%emt 0:02:47]} (32... Qh4+ $11
33. Ke2 (33. Kf1 Rd8 $14) 33... Qxg4+ 34. Kd3 Qh4) 33. Qf3 $40 {[%emt 0:06:09]
White is up to no good.} (33. Rxc3 $2 Rh2+ 34. Kf1 Qh4 $19) (33. Qxb7 Rd8 34.
Rg1 (34. Rxc3 $2 Rh2+ 35. Kf1 Qh4 $19) 34... Qf5 35. Rxc3 (35. Qc6+ Kf8 $17)
35... e5 36. Rxg7 Kf8 $11) (33. Rh1 $16) 33... Rh2+ {[%emt 0:01:57]} 34. Ng2 {
[%emt 0:00:14]} Qh4+ {[%emt 0:00:23]} 35. Kf1 {[%emt 0:00:40]} Qg5 {[%emt 0:01:
06]} (35... Qh7 $1 $11 {keeps the balance.} 36. Rxc3 Rd8) 36. Kg1 $16 {[%emt 0:
01:30]} Qe5 {[%emt 0:00:31]} (36... Qh5 $16 {keeps fighting.} 37. Qxh5 (37.
Qxb7 Rh1+ 38. Kf2 Qf5+ 39. Nf4 Qxc2+ $11) 37... Rxh5) 37. Qxb7 $18 {[%emt 0:03:
27] Chess con chili.} Rd8 {[%emt 0:00:10]} 38. Qc6+ {[%emt 0:00:40]} ({Not} 38.
Qxa6 Rh6 39. Qc6+ (39. Nf4 g5 $11) 39... Ke7 40. Qxc3 (40. Rxc3 Qh2+ 41. Kf1
Qh1+ 42. Ke2 Qh5+ 43. Kf1 Qh1+ 44. Ke2 Qh5+ 45. Kf1 Qh1+ $11) 40... Qh2+ 41.
Kf1 Rf6+ 42. Rf2 (42. Nf4 Qh1+ 43. Kf2 Qh2+ 44. Kf3 Qh3+ 45. Kf2 Qh2+ 46. Kf3
Qh3+ 47. Kf2 Qh2+ $11) 42... Qh1+ 43. Ke2 Qh5+ 44. Kf1 Qh1+ 45. Ke2 Qh5+ 46.
Kf1 Qh1+ $11) 38... Kf8 {[%emt 0:00:27]} 39. Qxc3 {[%emt 0:00:22]} Qg3 {
[%emt 0:00:26]} 40. Rf1 $1 {[%emt 0:00:58]} Qh3 {[%emt 0:00:58]} 41. Qb4+ {
[%emt 0:14:06]} ({White should try} 41. Qa5 $1 $18 {[%cal Ra5d8]} Rh1+ 42. Kf2
Rxf1+ 43. Kxf1 Qf3+ 44. Kg1) 41... Kg8 $16 {[%emt 0:00:20]} 42. Qe4 {[%emt 0:
00:11]} (42. Qf4 $16 Rh1+ 43. Kf2) 42... g6 $2 {[%emt 0:06:42]} (42... e5 $1
$11) 43. Qf4 {[%emt 0:08:42]} Rh1+ {[%emt 0:04:55]} 44. Kf2 {[%emt 0:00:01]}
Rxf1+ {[%emt 0:08:38]} (44... Rh2 {was worth a try.} 45. Ke1 Rf8) 45. Kxf1 $18
{[%emt 0:00:01]} Rd5 {[%emt 0:00:00] [#]} 46. Kg1 $1 {[%emt 0:02:42]} Rh5 {
[%emt 0:04:37] Strongly threatening ...Qh1+.} 47. Rc8+ {[%emt 0:04:08]} Kg7 {
[%emt 0:00:04] [#]} 48. Rc5 $3 {[%emt 0:00:45]} Qh1+ {[%emt 0:02:55]} 49. Kf2 {
[%emt 0:00:02] b4 is the strong threat.} Rh2 $2 {[%emt 0:01:13]} (49... Qb1 50.
Rxh5 gxh5 51. Qe5+ Kf8) 50. Qe5+ {[%emt 0:01:07]} Kh7 {[%emt 0:00:09]} 51. Qg3
{[%emt 0:00:00] Threatens to win with Rc7.} Kg7 {[%emt 0:01:49]} 52. b4 {
[%emt 0:00:24]} Rh8 {[%emt 0:02:03]} (52... Rh5 $142 53. Qf4 Qd1 54. Rxh5 Qxh5
55. Qd4+ Kg8) 53. Qe5+ {[%emt 0:00:46]} Kh7 {[%emt 0:01:18]} 54. Rc4 {[%emt 0:
00:07] What a fight! Weighted Error Value: White=0.28 (precise) /Black=0.48}
1-0

[Event "44th Chess Olympiad Women 2022"]
[Site "Chennai"]
[Date "2022.08.05"]
[Round "7.9"]
[White "Enkhtuul, Altan-Ulzii"]
[Black "Ordaz Valdes, Lisandra Teresa"]
[Result "1-0"]
[WhiteElo "2267"]
[BlackElo "2367"]
[Annotator "ChessBase"]
[PlyCount "79"]
[EventDate "2022.??.??"]
[TimeControl "60"]

1. d4 {[%emt 0:00:02]} d5 {[%emt 0:00:06]} 2. c4 {[%emt 0:00:04]} e6 {[%emt 0:
00:00]} 3. Nf3 {[%emt 0:00:03]} Nf6 {[%emt 0:00:27]} 4. g3 {[%emt 0:00:08]}
dxc4 {[%emt 0:00:19]} 5. Bg2 {[%emt 0:00:10]} Bb4+ {[%emt 0:00:13]} 6. Bd2 {
[%emt 0:00:32]} c5 {[%emt 0:00:11]} 7. Bxb4 {[%emt 0:14:41]} cxb4 {[%emt 0:00:
00]} 8. Ne5 {[%emt 0:05:39]} O-O {[%emt 0:00:21]} 9. Nxc4 {[%emt 0:02:38]} Nc6
{[%emt 0:00:07]} 10. e3 {[%emt 0:01:32]} e5 {[%emt 0:00:25]} 11. d5 {[%emt 0:
00:00]} b5 {[%emt 0:02:30]} 12. O-O {[%emt 0:01:43]} bxc4 {[%emt 0:05:56]} 13.
dxc6 {[%emt 0:00:11]} Bf5 {[%emt 0:09:23]} 14. Qa4 {[%emt 0:03:31]} Bd3 {
[%emt 0:05:50]} 15. Rd1 {[%emt 0:08:20]} Qe7 {[%emt 0:23:37]} 16. Nd2 {[%emt 0:
00:00]} Rad8 {[%emt 0:04:01]} 17. Rdc1 {[%emt 0:01:50]} Nd5 {[%emt 0:02:15]}
18. Nxc4 {[%emt 0:03:17]} e4 {[%emt 0:00:22]} 19. a3 {[%emt 0:03:27]} Rb8 {
[%emt 0:02:53]} 20. Qa5 {[%emt 0:02:02]} Nf6 {[%emt 0:09:30]} 21. c7 {[%emt 0:
00:00]} Rbc8 {[%emt 0:00:05]} 22. Ne5 {[%emt 0:00:17]} Ne8 {[%emt 0:00:08]} 23.
Nc6 {[%emt 0:24:17]} Qd6 {[%emt 0:00:07]} 24. Nxb4 {[%emt 0:01:36]} Rxc7 {
[%emt 0:00:07]} 25. Rxc7 {[%emt 0:00:55]} Nxc7 {[%emt 0:00:36]} 26. Rd1 {
[%emt 0:01:03]} f5 {[%emt 0:03:38]} 27. Bf1 {[%emt 0:03:23]} Ne6 {[%emt 0:00:
00]} 28. Bxd3 {[%emt 0:02:41]} exd3 {[%emt 0:00:25]} 29. Rxd3 {[%emt 0:00:12]}
Qe7 {[%emt 0:00:19]} 30. Nc6 {[%emt 0:00:59]} Qf7 {[%emt 0:02:08]} 31. Qxa7 {
[%emt 0:03:15]} Qh5 {[%emt 0:01:26]} 32. Qa5 {[%emt 0:01:22]} Ng5 {[%emt 0:00:
00]} 33. h4 {[%emt 0:01:09]} Nf3+ {[%emt 0:01:09]} 34. Kg2 {[%emt 0:00:26]}
Nxh4+ {[%emt 0:04:13]} 35. gxh4 {[%emt 0:00:04]} Qg6+ {[%emt 0:00:15]} 36. Kf1
{[%emt 0:00:06]} Qxc6 {[%emt 0:00:04]} 37. Qd5+ {[%emt 0:00:04]} Qxd5 {[%emt 0:
00:00]} 38. Rxd5 {[%emt 0:00:06]} Rb8 {[%emt 0:00:01]} 39. b4 {[%emt 0:00:33]}
Ra8 {[%emt 0:00:05]} 40. Ra5 {[%emt 0:00:15]} 1-0

[Event "44th Chess Olympiad Women 2022"]
[Site "Chennai"]
[Date "2022.08.05"]
[Round "7.9"]
[White "Hernandez Gil, Ineymig"]
[Black "Mungunzul, Bat-Erdene"]
[Result "0-1"]
[WhiteElo "2234"]
[BlackElo "2163"]
[Annotator "NA RC"]
[PlyCount "80"]
[EventDate "2022.??.??"]
[TimeControl "60"]

1. e4 {[%emt 0:00:39]} e5 {[%emt 0:00:31]} 2. Nf3 {[%emt 0:00:08]} Nf6 {
[%emt 0:00:11]} 3. d4 {[%emt 0:00:10]} Nxe4 {[%emt 0:00:30]} 4. Bd3 {[%emt 0:
00:00]} d5 {[%emt 0:00:33]} 5. Nxe5 {[%emt 0:00:15]} Nd7 {[%emt 0:00:32]} 6.
Nc3 {[%emt 0:00:18]} Bb4 {[%emt 0:17:23]} 7. O-O {[%emt 0:00:18]} Nxe5 {
[%emt 0:02:12]} 8. dxe5 {[%emt 0:00:15]} Nxc3 {[%emt 0:06:56]} 9. bxc3 {
[%emt 0:00:08]} Bc5 {[%emt 0:00:13]} 10. Qh5 {[%emt 0:04:55]} Be6 {[%emt 0:00:
00]} 11. Rb1 {[%emt 0:04:55]} Qc8 {[%emt 0:04:15]} 12. Bg5 {[%emt 0:05:23]} b6
{[%emt 0:05:21]} 13. Kh1 {[%emt 0:05:39]} h6 {[%emt 0:06:01]} 14. f4 {[%emt 0:
00:00]} Bg4 {[%emt 0:06:02]} 15. Qh4 {[%emt 0:02:50]} Bf5 {[%emt 0:03:09]} 16.
e6 {[%emt 0:19:41]} Bxd3 {[%emt 0:10:02]} 17. cxd3 {[%emt 0:00:23]} O-O {
[%emt 0:08:21]} 18. e7 {[%emt 0:15:09]} Re8 {[%emt 0:00:51]} 19. Bxh6 {[%emt 0:
00:00]} Bxe7 {[%emt 0:02:06]} 20. Bg5 {[%emt 0:02:24]} f6 {[%emt 0:01:30]} 21.
Qh5 {[%emt 0:03:33]} Qf5 {[%emt 0:01:28]} 22. Rf3 {[%emt 0:03:50]} fxg5 {
[%emt 0:02:01]} 23. fxg5 {[%emt 0:02:04]} g6 {[%emt 0:00:07]} 24. Qh4 {[%emt 0:
00:00]} Bxg5 {[%emt 0:01:33]} 25. Qf2 {[%emt 0:01:36]} Qe5 {[%emt 0:03:54]} 26.
Rf1 {[%emt 0:01:38]} Bh6 {[%emt 0:01:03]} 27. Qh4 {[%emt 0:05:55]} Qg5 {
[%emt 0:01:23]} 28. Qh3 {[%emt 0:01:46]} Rf8 {[%emt 0:02:04]} 29. Qe6+ {
[%emt 0:00:42]} Kh8 {[%emt 0:00:08]} 30. h4 {[%emt 0:02:43]} Qxh4+ {[%emt 0:00:
00]} 31. Kg1 {[%emt 0:00:05]} Qg5 {[%emt 0:00:21]} 32. Qc6 {[%emt 0:02:45]}
Rac8 {[%emt 0:01:06]} 33. Qd7 {[%emt 0:00:45]} Rcd8 {[%emt 0:01:23]} 34. Qxc7 {
[%emt 0:00:35]} Rxf3 {[%emt 0:00:08]} 35. Rxf3 {[%emt 0:00:12]} Re8 {[%emt 0:
00:00]} 36. Rh3 {[%emt 0:02:09]} Kg8 {[%emt 0:00:41]} 37. Qc6 {[%emt 0:00:37]}
Re1+ {[%emt 0:00:34]} 38. Kh2 {[%emt 0:00:17]} Qe5+ {[%emt 0:00:18]} 39. Rg3 {
[%emt 0:00:14]} Qh5+ {[%emt 0:00:06]} 40. Rh3 {[%emt 0:00:17]} Bf4+ {[%emt 0:
00:00]} 0-1